[Event "41st BAN National Women Chess-ch 2022"]
[Site "Dhaka"]
[Date "2022.11.19"]
[Round "3.6"]
[White "Noshin, Anjum"]
[Black "Jannatul, Ferdous"]
[Result "1/2-1/2"]
[ECO "B18"]
[WhiteElo "1907"]
[BlackElo "1861"]
[Annotator "TA"]
[PlyCount "33"]
[EventDate "2022.11.17"]
[EventCountry "BAN"]
[SourceTitle "playchess.com"]
[Source "ChessBase"]
[SourceQuality "1"]
[TimeControl "40/5400+30:1800+30"]

{[%evp 19,33,0,0,-17,-12,-29,-25,-35,-16,-52,-35,-31,-36,-33,0,0]} 1. e4 {[%emt 0:00:03]} c6 {[%emt 0:00:23]} 2. d4 {[%emt 0:00:08]} d5 {[%emt 0:00:13]} 3. Nc3 {[%emt 0:00:08][%cal Bb1c3,Bc3e4,Be4g3][%mdl 32]} dxe4 {[%emt 0:00:22]} 4. Nxe4 {[%emt 0:00:14]} Bf5 {[%emt 0:00:09]} 5. Ng3 {[%emt 0:00:08]} Bg6 {[%emt 0:00:02]} 6. Bc4 {[%emt 0:00:08]} e6 {[%emt 0:00:35]} 7. h4 {[%emt 0:00:24]} h6 {[%emt 0:00:07]} 8. N1e2 {[%emt 0:00:06]} Nf6 {[%emt 0:02:31]} 9. Nf4 {[%emt 0:00:33]} Bh7 {[%emt 0:00:04]} 10. c3 {[%emt 0:03:00]} Bd6 {[%emt 0:00:55]} 11. Nfh5 {[%emt 0:02:10] B18: Classical Caro-Kann: 4...Bf5 sidelines.} O-O {[%emt 0:02:29]} 12. Qf3 {[%emt 0:02:54] aiming for Nxf6+.} Nbd7 {[%emt 0:02:54]} 13. Nxf6+ {[%emt 0:03:56] [#] Black has an edge.} Nxf6 $146 {[%emt 0:06:10]} ({Predecessor:} 13... Qxf6 14. Qxf6 Nxf6 15. Ne2 Rad8 16. Bf4 Rfe8 17. Bxd6 Rxd6 18. O-O-O Ng4 19. Rhf1 Red8 {½-½ (51) Fowler,H (1686)-Olsen,F (2093) Tornelo INT 2020}) 14. O-O {[%emt 0:02:46]} Rc8 {[%emt 0:02:31]} 15. Bf4 {[%emt 0:07:36]} Bxf4 {[%emt 0:06:05]} 16. Qxf4 {[%emt 0:00:05]} Qc7 {[%emt 0:02:32]} 17. Qxc7 {[%emt 0:05:50] Weighted Error Value: White=0.13 (very precise) /Black=0.09 (flawless)} 1/2-1/2